[Event "*** Titled Tuesday Blitz"]
[Site "Chess.com"]
[Date "2018.11.06"]
[Round "3"]
[White "GadimbayliA"]
[Black "DanielNaroditsky"]
[Result "0-1"]
[WhiteElo "2639"]
[BlackElo "2979"]
[TimeControl "180+2"]
[EndTime "13:40:41 PST"]
[Termination "DanielNaroditsky won by resignation"]

1. e4 {[%clk 0:03:01.9]} 1... e5 {[%clk 0:03:00.2]} 2. Nf3 {[%clk 0:02:53.4]}
2... Nc6 {[%clk 0:03:00.4]} 3. Bb5 {[%clk 0:02:53.5]} 3... a6 {[%clk 0:03:01.5]}
4. Ba4 {[%clk 0:02:54.4]} 4... Nf6 {[%clk 0:03:03]} 5. O-O {[%clk 0:02:54.4]}
5... Be7 {[%clk 0:03:04.5]} 6. Re1 {[%clk 0:02:55.1]} 6... b5 {[%clk 0:03:05.1]}
7. Bb3 {[%clk 0:02:56.4]} 7... d6 {[%clk 0:03:06.8]} 8. c3 {[%clk 0:02:57.4]}
8... O-O {[%clk 0:03:08.1]} 9. h3 {[%clk 0:02:58.7]} 9... Na5 {[%clk 0:03:09.8]}
10. Bc2 {[%clk 0:02:59.5]} 10... c5 {[%clk 0:03:11.5]} 11. d4 {[%clk 0:03:00.7]}
11... Nd7 {[%clk 0:03:13.1]} 12. b3 {[%clk 0:02:39.2]} 12... exd4 {[%clk
0:03:08.6]} 13. cxd4 {[%clk 0:02:39.2]} 13... Nc6 {[%clk 0:03:10.5]} 14. Bb2
{[%clk 0:02:37.9]} 14... Bf6 {[%clk 0:03:10.9]} 15. e5 {[%clk 0:02:18.6]} 15...
dxe5 {[%clk 0:03:00.8]} 16. dxe5 {[%clk 0:02:14.9]} 16... Be7 {[%clk 0:03:02]}
17. Nc3 {[%clk 0:01:45.7]} 17... Nb6 {[%clk 0:02:43.8]} 18. Be4 {[%clk
0:01:31.3]} 18... Bb7 {[%clk 0:02:42.1]} 19. Qc2 {[%clk 0:01:23.7]} 19... h6
{[%clk 0:02:38.5]} 20. Rad1 {[%clk 0:01:23.8]} 20... Qc7 {[%clk 0:02:39.2]} 21.
e6 {[%clk 0:01:12.3]} 21... fxe6 {[%clk 0:02:29.8]} 22. Bh7+ {[%clk 0:01:12.3]}
22... Kh8 {[%clk 0:02:31.2]} 23. Rxe6 {[%clk 0:00:30.7]} 23... Nb4 {[%clk
0:02:27.5]} 24. Qg6 {[%clk 0:00:30]} 24... Rf6 {[%clk 0:02:15.7]} 25. Nxb5
{[%clk 0:00:16.3]} 25... axb5 {[%clk 0:02:05.3]} 26. Bxf6 {[%clk 0:00:16.7]}
26... Bxf6 {[%clk 0:02:07.2]} 27. Rde1 {[%clk 0:00:17.8]} 27... Bc6 {[%clk
0:01:24.7]} 28. Ne5 {[%clk 0:00:17.8]} 28... Bxe5 {[%clk 0:01:07.2]} 29. R1xe5
{[%clk 0:00:19.7]} 29... N6d5 {[%clk 0:01:08.8]} 30. Qb1 {[%clk 0:00:08.1]}
30... c4 {[%clk 0:00:53.2]} 31. Be4 {[%clk 0:00:06.5]} 31... Nc3 {[%clk
0:00:50.6]} 32. Bxc6 {[%clk 0:00:02.6]} 32... Nxb1 {[%clk 0:00:51.7]} 33. Bxa8
{[%clk 0:00:03.6]} 33... Kg8 {[%clk 0:00:44.1]} 34. Be4 {[%clk 0:00:03.5]} 34...
Nd3 {[%clk 0:00:29]} 35. Re8+ {[%clk 0:00:03.6]} 35... Kf7 {[%clk 0:00:30.7]}
36. R5e6 {[%clk 0:00:05.2]} 36... Nf4 {[%clk 0:00:28.4]} 37. R6e7+ {[%clk
0:00:04.5]} 37... Qxe7 {[%clk 0:00:29.8]} 38. Rxe7+ {[%clk 0:00:06.4]} 38...
Kxe7 {[%clk 0:00:31.7]} 39. Bxb1 {[%clk 0:00:07.9]} 39... Ne2+ {[%clk
0:00:26.3]} 40. Kf1 {[%clk 0:00:08.8]} 40... Nc3 {[%clk 0:00:28.2]} 41. Bc2
{[%clk 0:00:09.9]} 41... Nxa2 {[%clk 0:00:27.9]} 42. bxc4 {[%clk 0:00:11.8]}
42... bxc4 {[%clk 0:00:29.8]} 43. Ke2 {[%clk 0:00:13.5]} 43... Kd6 {[%clk
0:00:30.4]} 44. Kd2 {[%clk 0:00:14.4]} 44... Kc5 {[%clk 0:00:29.6]} 45. Bg6
{[%clk 0:00:15.4]} 45... Kd4 {[%clk 0:00:29.9]} 46. f4 {[%clk 0:00:16.2]} 46...
Nb4 {[%clk 0:00:31.1]} 47. g4 {[%clk 0:00:16.9]} 47... c3+ {[%clk 0:00:29.5]}
48. Kc1 {[%clk 0:00:17.8]} 48... Nd5 {[%clk 0:00:21.1]} 49. f5 {[%clk
0:00:11.5]} 49... Nf4 {[%clk 0:00:21.6]} 50. Bf7 {[%clk 0:00:11.9]} 50... Nxh3
{[%clk 0:00:22.9]} 51. Kc2 {[%clk 0:00:13.2]} 51... Nf2 {[%clk 0:00:23.6]} 52.
Bh5 {[%clk 0:00:14.4]} 52... Nd3 {[%clk 0:00:24.7]} 53. Bg6 {[%clk 0:00:12.8]}
53... Ne5 {[%clk 0:00:24.4]} 54. Bh5 {[%clk 0:00:13.3]} 54... Nc4 {[%clk
0:00:26.1]} 55. Kc1 {[%clk 0:00:12.5]} 55... Ne3 {[%clk 0:00:26.9]} 56. Kb1
{[%clk 0:00:13.1]} 56... Ke4 {[%clk 0:00:24.5]} 57. Kc1 {[%clk 0:00:10.3]} 57...
Kf4 {[%clk 0:00:25.8]} 58. f6 {[%clk 0:00:10.8]} 58... gxf6 {[%clk 0:00:26.6]}
0-1

[Event "*** Titled Tuesday Blitz"]
[Site "Chess.com"]
[Date "2018.11.06"]
[Round "3"]
[White "olksuna"]
[Black "florianschwabeneder"]
[Result "1-0"]
[WhiteElo "2518"]
[BlackElo "2482"]
[TimeControl "180+2"]
[EndTime "13:40:43 PST"]
[Termination "olksuna won by resignation"]

1. c4 {[%clk 0:03:01.9]} 1... e5 {[%clk 0:02:59.4]} 2. g3 {[%clk 0:03:02.1]}
2... Bc5 {[%clk 0:02:58.9]} 3. Bg2 {[%clk 0:03:02.7]} 3... d6 {[%clk 0:03:00]}
4. Nc3 {[%clk 0:03:03.3]} 4... a6 {[%clk 0:02:58.8]} 5. e3 {[%clk 0:03:03.4]}
5... Nc6 {[%clk 0:02:59.5]} 6. Nge2 {[%clk 0:03:05.3]} 6... Ba7 {[%clk
0:02:59.4]} 7. O-O {[%clk 0:03:05.1]} 7... h5 {[%clk 0:02:59.5]} 8. h3 {[%clk
0:02:47]} 8... h4 {[%clk 0:02:58.4]} 9. g4 {[%clk 0:02:47.5]} 9... f5 {[%clk
0:02:59.3]} 10. gxf5 {[%clk 0:02:47.1]} 10... Bxf5 {[%clk 0:03:01.2]} 11. d4
{[%clk 0:02:47.8]} 11... Nf6 {[%clk 0:02:49.2]} 12. Kh2 {[%clk 0:02:44.4]} 12...
Qd7 {[%clk 0:02:22.3]} 13. d5 {[%clk 0:02:44.6]} 13... Ne7 {[%clk 0:02:12.1]}
14. e4 {[%clk 0:02:45.5]} 14... Bg6 {[%clk 0:01:54.5]} 15. f4 {[%clk 0:02:46.6]}
15... exf4 {[%clk 0:01:53.1]} 16. Nxf4 {[%clk 0:02:34.3]} 16... Bf7 {[%clk
0:01:53.8]} 17. Nd3 {[%clk 0:02:35]} 17... Ng6 {[%clk 0:01:50.9]} 18. Bg5 {[%clk
0:02:29.5]} 18... O-O-O {[%clk 0:01:37.2]} 19. b4 {[%clk 0:01:42.8]} 19... Bd4
{[%clk 0:01:33]} 20. Ne2 {[%clk 0:01:38.5]} 20... Bxa1 {[%clk 0:01:28.7]} 21.
Qxa1 {[%clk 0:01:40.4]} 21... Rde8 {[%clk 0:01:29]} 22. Qd4 {[%clk 0:01:33.2]}
22... Ne5 {[%clk 0:00:53.7]} 23. Qa7 {[%clk 0:01:28.1]} 23... c6 {[%clk
0:00:51.1]} 24. Nxe5 {[%clk 0:00:56.6]} 24... dxe5 {[%clk 0:00:50.2]} 25. Be3
{[%clk 0:00:52.8]} 25... Bg6 {[%clk 0:00:30.8]} 26. Bb6 {[%clk 0:00:50.9]} 26...
Qd6 {[%clk 0:00:29.9]} 27. dxc6 {[%clk 0:00:47.7]} 27... Qxc6 {[%clk 0:00:26.2]}
28. b5 {[%clk 0:00:36]} 28... axb5 {[%clk 0:00:07.1]} 29. cxb5 {[%clk
0:00:36.9]} 29... Qxb5 {[%clk 0:00:05.1]} 30. Rc1+ {[%clk 0:00:18.8]} 30... Kd7
{[%clk 0:00:05.9]} 31. Qxb7+ {[%clk 0:00:19.3]} 31... Ke6 {[%clk 0:00:02.1]} 32.
Rc6+ {[%clk 0:00:18.7]} 32... Qxc6 {[%clk 0:00:03]} 33. Qxc6+ {[%clk 0:00:18.6]}
33... Kf7 {[%clk 0:00:04.5]} 34. Qc4+ {[%clk 0:00:16.7]} 34... Re6 {[%clk
0:00:03.8]} 35. a4 {[%clk 0:00:17.5]} 35... Re8 {[%clk 0:00:04.3]} 36. a5 {[%clk
0:00:18.6]} 36... Kg8 {[%clk 0:00:05.4]} 37. Nc3 {[%clk 0:00:18.9]} 37... Bf7
{[%clk 0:00:06.2]} 38. Nd5 {[%clk 0:00:19.7]} 38... Nxd5 {[%clk 0:00:06.3]} 39.
exd5 {[%clk 0:00:20.9]} 39... Rf6 {[%clk 0:00:07.8]} 40. Qxh4 {[%clk 0:00:17.5]}
40... e4 {[%clk 0:00:08.3]} 41. Bxe4 {[%clk 0:00:17.7]} 41... Rh6 {[%clk
0:00:06]} 42. Qg4 {[%clk 0:00:15.7]} 42... Bh5 {[%clk 0:00:06.2]} 43. Qd7 {[%clk
0:00:12]} 43... Rxe4 {[%clk 0:00:05.2]} 44. a6 {[%clk 0:00:12.1]} 44... Bg4
{[%clk 0:00:06.2]} 45. Qd8+ {[%clk 0:00:12.5]} 45... Kh7 {[%clk 0:00:06.6]} 46.
h4 {[%clk 0:00:10.5]} 46... Ra4 {[%clk 0:00:04.9]} 47. a7 {[%clk 0:00:10.3]}
47... Rxb6 {[%clk 0:00:04]} 48. Qxb6 {[%clk 0:00:10.7]} 48... Bf3 {[%clk
0:00:05.9]} 49. Qb7 {[%clk 0:00:11.5]} 49... Ra2+ {[%clk 0:00:06.4]} 50. Kg3
{[%clk 0:00:11.9]} 50... Ra3 {[%clk 0:00:06.3]} 51. a8=Q {[%clk 0:00:11.1]}
51... Bxd5+ {[%clk 0:00:07]} 52. Qxa3 {[%clk 0:00:11.9]} 52... Bxb7 {[%clk
0:00:08.9]} 53. Qe7 {[%clk 0:00:12.2]} 1-0

[Event "*** Titled Tuesday Blitz"]
[Site "Chess.com"]
[Date "2018.11.06"]
[Round "3"]
[White "PaulfromSPb"]
[Black "GasconJR"]
[Result "1-0"]
[WhiteElo "2519"]
[BlackElo "2411"]
[TimeControl "180+2"]
[EndTime "13:40:58 PST"]
[Termination "PaulfromSPb won by checkmate"]

1. e4 {[%clk 0:03:01.8]} 1... e5 {[%clk 0:03:01.3]} 2. Nf3 {[%clk 0:03:01.9]}
2... Nc6 {[%clk 0:03:02.7]} 3. Bb5 {[%clk 0:03:02.6]} 3... a6 {[%clk 0:03:04]}
4. Ba4 {[%clk 0:03:02.2]} 4... d6 {[%clk 0:03:05]} 5. c3 {[%clk 0:02:59.5]} 5...
Bd7 {[%clk 0:03:05.4]} 6. O-O {[%clk 0:02:58.7]} 6... g6 {[%clk 0:03:06]} 7. d4
{[%clk 0:02:57.5]} 7... Bg7 {[%clk 0:03:06.9]} 8. Bg5 {[%clk 0:02:56.4]} 8...
Nf6 {[%clk 0:02:37]} 9. Re1 {[%clk 0:02:45.1]} 9... h6 {[%clk 0:02:24.5]} 10.
Bh4 {[%clk 0:02:26.9]} 10... O-O {[%clk 0:02:05.3]} 11. dxe5 {[%clk 0:02:14]}
11... dxe5 {[%clk 0:01:36.3]} 12. Nbd2 {[%clk 0:02:13.9]} 12... Qe8 {[%clk
0:01:34.6]} 13. Qc2 {[%clk 0:01:57.4]} 13... Nh5 {[%clk 0:01:19.7]} 14. Nf1
{[%clk 0:01:51.8]} 14... Rc8 {[%clk 0:01:11.1]} 15. Ne3 {[%clk 0:01:45]} 15...
Nf4 {[%clk 0:01:06.8]} 16. Bg3 {[%clk 0:01:43.1]} 16... Nb4 {[%clk 0:01:04.3]}
17. cxb4 {[%clk 0:01:13.4]} 17... Bxa4 {[%clk 0:01:05.4]} 18. b3 {[%clk
0:01:14.3]} 18... Bc6 {[%clk 0:01:06.8]} 19. Rad1 {[%clk 0:01:13]} 19... Qe7
{[%clk 0:01:05.2]} 20. Nd5 {[%clk 0:01:09.9]} 20... Bxd5 {[%clk 0:00:55.6]} 21.
exd5 {[%clk 0:01:11.8]} 21... Qxb4 {[%clk 0:00:37.4]} 22. Nxe5 {[%clk
0:01:08.4]} 22... Nh5 {[%clk 0:00:38.8]} 23. Nc4 {[%clk 0:00:57.7]} 23... Nxg3
{[%clk 0:00:38.9]} 24. hxg3 {[%clk 0:00:58.5]} 24... Rcd8 {[%clk 0:00:38.7]} 25.
Re3 {[%clk 0:00:53]} 25... Rd7 {[%clk 0:00:39.4]} 26. Red3 {[%clk 0:00:51.2]}
26... Qc5 {[%clk 0:00:39.8]} 27. Qe2 {[%clk 0:00:49.8]} 27... Re7 {[%clk
0:00:40.8]} 28. Qf3 {[%clk 0:00:49.7]} 28... Rfe8 {[%clk 0:00:41.2]} 29. Ne3
{[%clk 0:00:49.9]} 29... h5 {[%clk 0:00:37.8]} 30. g4 {[%clk 0:00:49.3]} 30...
Bh6 {[%clk 0:00:36.4]} 31. Nf1 {[%clk 0:00:38.1]} 31... Re5 {[%clk 0:00:31.4]}
32. gxh5 {[%clk 0:00:35.2]} 32... Rf5 {[%clk 0:00:26]} 33. Qg3 {[%clk
0:00:36.1]} 33... Rxh5 {[%clk 0:00:24.3]} 34. d6 {[%clk 0:00:33.7]} 34... cxd6
{[%clk 0:00:25]} 35. Qxd6 {[%clk 0:00:33.4]} 35... Re2 {[%clk 0:00:12.3]} 36.
Qxc5 {[%clk 0:00:22.4]} 36... Rxc5 {[%clk 0:00:12.9]} 37. a4 {[%clk 0:00:23.5]}
37... Rcc2 {[%clk 0:00:13.5]} 38. Rf3 {[%clk 0:00:24.2]} 38... Bf8 {[%clk
0:00:08.7]} 39. Ng3 {[%clk 0:00:23.6]} 39... Red2 {[%clk 0:00:08.9]} 40. Rxd2
{[%clk 0:00:24.4]} 40... Rxd2 {[%clk 0:00:10.8]} 41. Ne4 {[%clk 0:00:25.6]}
41... Rb2 {[%clk 0:00:12.3]} 42. g4 {[%clk 0:00:18.7]} 42... Bg7 {[%clk
0:00:11.9]} 43. Kg2 {[%clk 0:00:19.5]} 43... Bd4 {[%clk 0:00:13]} 44. Nd6 {[%clk
0:00:19.1]} 44... b6 {[%clk 0:00:10.8]} 45. Nxf7 {[%clk 0:00:19.7]} 45... Bxf2
{[%clk 0:00:09.8]} 46. Kh3 {[%clk 0:00:16.7]} 46... Bc5 {[%clk 0:00:08.7]} 47.
g5 {[%clk 0:00:17.6]} 47... Be7 {[%clk 0:00:04.9]} 48. Nh6+ {[%clk 0:00:16.7]}
48... Kh8 {[%clk 0:00:06.1]} 49. Kh4 {[%clk 0:00:11.4]} 49... Rd2 {[%clk
0:00:06.4]} 50. Nf7+ {[%clk 0:00:09.5]} 50... Kg7 {[%clk 0:00:06.1]} 51. Ne5
{[%clk 0:00:10.6]} 51... Rd4+ {[%clk 0:00:06.9]} 52. Kg3 {[%clk 0:00:10.4]}
52... Bxg5 {[%clk 0:00:07.2]} 53. Rf7+ {[%clk 0:00:11.5]} 53... Kh6 {[%clk
0:00:08.3]} 54. Ng4+ {[%clk 0:00:11.9]} 54... Kh5 {[%clk 0:00:06.3]} 55. Rh7+
{[%clk 0:00:12.3]} 55... Bh6 {[%clk 0:00:07.6]} 56. Nxh6 {[%clk 0:00:14.1]}
56... Rd3+ {[%clk 0:00:07.4]} 57. Kf4 {[%clk 0:00:15.5]} 57... Rxb3 {[%clk
0:00:09]} 58. Nf5# {[%clk 0:00:15.3]} 1-0

[Event "*** Titled Tuesday Blitz"]
[Site "Chess.com"]
[Date "2018.11.06"]
[Round "3"]
[White "Maikrosoft63"]
[Black "731291"]
[Result "0-1"]
[WhiteElo "2531"]
[BlackElo "2574"]
[TimeControl "180+2"]
[EndTime "13:40:58 PST"]
[Termination "731291 won by resignation"]

1. e4 {[%clk 0:03:01.8]} 1... e6 {[%clk 0:03:00.4]} 2. d4 {[%clk 0:03:02.8]}
2... d5 {[%clk 0:03:01.7]} 3. Nd2 {[%clk 0:03:03]} 3... Be7 {[%clk 0:03:02.2]}
4. e5 {[%clk 0:03:03.3]} 4... c5 {[%clk 0:03:02.8]} 5. c3 {[%clk 0:03:03.1]}
5... cxd4 {[%clk 0:03:04.1]} 6. cxd4 {[%clk 0:03:03.9]} 6... Qb6 {[%clk
0:03:05.8]} 7. Ndf3 {[%clk 0:03:00.9]} 7... Bd7 {[%clk 0:03:04.3]} 8. Bd3 {[%clk
0:03:01]} 8... Bb5 {[%clk 0:03:04.3]} 9. Ne2 {[%clk 0:02:59.7]} 9... Bxd3 {[%clk
0:02:56.7]} 10. Qxd3 {[%clk 0:03:01.6]} 10... Qa6 {[%clk 0:02:58.3]} 11. Qe3
{[%clk 0:02:36.2]} 11... Nh6 {[%clk 0:02:49.9]} 12. O-O {[%clk 0:02:29.2]} 12...
Nf5 {[%clk 0:02:50]} 13. Qd2 {[%clk 0:02:30.3]} 13... O-O {[%clk 0:02:45.5]} 14.
a3 {[%clk 0:02:13.3]} 14... Nd7 {[%clk 0:02:36.2]} 15. b3 {[%clk 0:01:55.7]}
15... Rac8 {[%clk 0:02:16.9]} 16. Bb2 {[%clk 0:01:56.1]} 16... Rc6 {[%clk
0:02:17.4]} 17. a4 {[%clk 0:01:45.4]} 17... Rfc8 {[%clk 0:02:12.8]} 18. Rfc1
{[%clk 0:01:46.7]} 18... Rxc1+ {[%clk 0:02:02.9]} 19. Rxc1 {[%clk 0:01:48.6]}
19... Rxc1+ {[%clk 0:02:04]} 20. Nxc1 {[%clk 0:01:44.9]} 20... h5 {[%clk
0:01:41.6]} 21. Qd3 {[%clk 0:01:40.5]} 21... Qxd3 {[%clk 0:01:37.8]} 22. Nxd3
{[%clk 0:01:40.9]} 22... Nb8 {[%clk 0:01:34.3]} 23. Kf1 {[%clk 0:01:37.1]} 23...
Nc6 {[%clk 0:01:34.3]} 24. Bc3 {[%clk 0:01:38.4]} 24... g5 {[%clk 0:01:32.3]}
25. b4 {[%clk 0:01:13.9]} 25... g4 {[%clk 0:01:31.1]} 26. b5 {[%clk 0:01:14.5]}
26... gxf3 {[%clk 0:01:19.3]} 27. bxc6 {[%clk 0:01:16.4]} 27... fxg2+ {[%clk
0:01:16.9]} 28. Kxg2 {[%clk 0:01:18.3]} 28... bxc6 {[%clk 0:01:18.6]} 29. Kf3
{[%clk 0:00:57.1]} 29... f6 {[%clk 0:00:45.9]} 30. Nf4 {[%clk 0:00:53.4]} 30...
fxe5 {[%clk 0:00:36.3]} 31. dxe5 {[%clk 0:00:55.3]} 31... Ng7 {[%clk 0:00:31.7]}
32. a5 {[%clk 0:00:16.4]} 32... a6 {[%clk 0:00:27.7]} 33. Nd3 {[%clk 0:00:12.4]}
33... Kf7 {[%clk 0:00:28.1]} 34. Bb4 {[%clk 0:00:13.7]} 34... Ne8 {[%clk
0:00:21.1]} 35. Bxe7 {[%clk 0:00:12.6]} 35... Kxe7 {[%clk 0:00:23]} 36. Nb4
{[%clk 0:00:14.3]} 36... Nc7 {[%clk 0:00:14.8]} 37. Nxc6+ {[%clk 0:00:15.3]}
37... Kf7 {[%clk 0:00:15.6]} 38. Ke3 {[%clk 0:00:14.7]} 38... Kg6 {[%clk
0:00:16.7]} 39. f4 {[%clk 0:00:15.1]} 39... Kf5 {[%clk 0:00:17.2]} 40. Nd4+
{[%clk 0:00:15.7]} 40... Kg4 {[%clk 0:00:17.6]} 41. h3+ {[%clk 0:00:11.8]} 41...
Kxh3 {[%clk 0:00:18.3]} 42. f5 {[%clk 0:00:13.1]} 42... exf5 {[%clk 0:00:18.1]}
43. e6 {[%clk 0:00:14.5]} 43... Kg4 {[%clk 0:00:17.8]} 44. e7 {[%clk 0:00:15.5]}
44... h4 {[%clk 0:00:16.3]} 45. Ne6 {[%clk 0:00:07.1]} 45... Ne8 {[%clk
0:00:17.2]} 46. Kf2 {[%clk 0:00:06.2]} 46... f4 {[%clk 0:00:16]} 47. Nc5 {[%clk
0:00:07.5]} 47... h3 {[%clk 0:00:15.8]} 48. Nxa6 {[%clk 0:00:07.7]} 48... f3
{[%clk 0:00:15.6]} 49. Nc5 {[%clk 0:00:04.7]} 49... h2 {[%clk 0:00:16.2]} 50.
Nd3 {[%clk 0:00:05.4]} 50... h1=Q {[%clk 0:00:16.4]} 51. Ne5+ {[%clk 0:00:06.8]}
51... Kf4 {[%clk 0:00:17.2]} 52. Nd3+ {[%clk 0:00:07.1]} 52... Kf5 {[%clk
0:00:17.2]} 53. a6 {[%clk 0:00:07.6]} 53... Qg2+ {[%clk 0:00:18.3]} 54. Ke3
{[%clk 0:00:09.1]} 54... Qe2+ {[%clk 0:00:20.2]} 55. Kd4 {[%clk 0:00:10.5]}
55... Qe4+ {[%clk 0:00:20.6]} 56. Kc3 {[%clk 0:00:11.2]} 56... Qc4+ {[%clk
0:00:21.3]} 57. Kd2 {[%clk 0:00:12.8]} 57... Qxa6 {[%clk 0:00:22.8]} 0-1

[Event "*** Titled Tuesday Blitz"]
[Site "Chess.com"]
[Date "2018.11.06"]
[Round "3"]
[White "ahachess"]
[Black "ozates"]
[Result "0-1"]
[WhiteElo "2332"]
[BlackElo "2327"]
[TimeControl "180+2"]
[EndTime "13:41:00 PST"]
[Termination "ozates won by resignation"]

1. d4 {[%clk 0:03:01.9]} 1... Nf6 {[%clk 0:02:57.1]} 2. c4 {[%clk 0:03:02.4]}
2... c5 {[%clk 0:02:58.1]} 3. d5 {[%clk 0:03:02.7]} 3... b5 {[%clk 0:02:59.2]}
4. cxb5 {[%clk 0:03:04]} 4... a6 {[%clk 0:02:59.2]} 5. bxa6 {[%clk 0:03:04.2]}
5... g6 {[%clk 0:03:00.1]} 6. Nc3 {[%clk 0:03:05]} 6... Bxa6 {[%clk 0:03:00.8]}
7. g3 {[%clk 0:03:06.2]} 7... Bg7 {[%clk 0:03:01.6]} 8. Bg2 {[%clk 0:03:07.4]}
8... O-O {[%clk 0:03:02.7]} 9. Nf3 {[%clk 0:03:05.3]} 9... d6 {[%clk 0:03:03.5]}
10. O-O {[%clk 0:03:06.3]} 10... Nbd7 {[%clk 0:03:03.6]} 11. Rb1 {[%clk
0:03:05.6]} 11... Qa5 {[%clk 0:03:03.9]} 12. Bd2 {[%clk 0:03:05.2]} 12... Rfb8
{[%clk 0:03:01.5]} 13. h3 {[%clk 0:02:59.7]} 13... Rb7 {[%clk 0:02:47.4]} 14. b3
{[%clk 0:02:54.2]} 14... Rab8 {[%clk 0:02:43.5]} 15. Qc2 {[%clk 0:02:49.8]}
15... Ra7 {[%clk 0:02:34.5]} 16. Rfd1 {[%clk 0:02:49.1]} 16... Qc7 {[%clk
0:02:29.3]} 17. a4 {[%clk 0:02:48.8]} 17... e6 {[%clk 0:02:18.4]} 18. dxe6
{[%clk 0:02:04.3]} 18... fxe6 {[%clk 0:02:16]} 19. Ng5 {[%clk 0:02:04.8]} 19...
Nf8 {[%clk 0:02:14.8]} 20. Bf4 {[%clk 0:02:03.7]} 20... Rd8 {[%clk 0:02:09.7]}
21. Nge4 {[%clk 0:01:44.7]} 21... Nxe4 {[%clk 0:02:06.7]} 22. Nxe4 {[%clk
0:01:45.3]} 22... e5 {[%clk 0:02:00.6]} 23. Bg5 {[%clk 0:01:21]} 23... Rd7
{[%clk 0:01:59.8]} 24. h4 {[%clk 0:01:21.6]} 24... h6 {[%clk 0:01:46]} 25. Be3
{[%clk 0:01:12.6]} 25... Bb7 {[%clk 0:01:45.1]} 26. Bh3 {[%clk 0:00:55.1]} 26...
Rd8 {[%clk 0:01:43.7]} 27. Nxd6 {[%clk 0:00:32.9]} 27... Rxd6 {[%clk 0:01:39.3]}
28. Rxd6 {[%clk 0:00:32.4]} 28... Qxd6 {[%clk 0:01:36.6]} 29. Bxc5 {[%clk
0:00:32.5]} 29... Qd5 {[%clk 0:01:32]} 30. e4 {[%clk 0:00:15.8]} 30... Qxe4
{[%clk 0:01:21.6]} 31. Qxe4 {[%clk 0:00:17]} 31... Bxe4 {[%clk 0:01:23.5]} 32.
Re1 {[%clk 0:00:18.4]} 32... Rb7 {[%clk 0:00:54.6]} 33. Rxe4 {[%clk 0:00:18.7]}
33... Rxb3 {[%clk 0:00:55.4]} 34. Bg2 {[%clk 0:00:17.1]} 34... Ne6 {[%clk
0:00:55.1]} 35. Bd6 {[%clk 0:00:17.4]} 35... Rb1+ {[%clk 0:00:51]} 36. Kh2
{[%clk 0:00:18.2]} 36... Rb2 {[%clk 0:00:50.2]} 37. Bxe5 {[%clk 0:00:17.8]}
37... Rxf2 {[%clk 0:00:50.6]} 38. Bxg7 {[%clk 0:00:18.3]} 38... Nxg7 {[%clk
0:00:52.5]} 39. Kh3 {[%clk 0:00:18.7]} 39... h5 {[%clk 0:00:50.4]} 40. g4 {[%clk
0:00:17.7]} 40... Ra2 {[%clk 0:00:50.1]} 41. gxh5 {[%clk 0:00:18.6]} 41... Nxh5
{[%clk 0:00:48.3]} 42. Bf3 {[%clk 0:00:19.5]} 42... Ra3 {[%clk 0:00:47.9]} 43.
Kg2 {[%clk 0:00:20.1]} 43... Nf6 {[%clk 0:00:49.3]} 44. Rf4 {[%clk 0:00:19.5]}
44... Kg7 {[%clk 0:00:50]} 45. Rb4 {[%clk 0:00:18.1]} 45... Kh6 {[%clk
0:00:50.1]} 46. Rb6 {[%clk 0:00:18.3]} 46... Nh5 {[%clk 0:00:50.1]} 47. Rb4
{[%clk 0:00:19.9]} 47... Ng7 {[%clk 0:00:50.1]} 48. Be4 {[%clk 0:00:18.4]} 48...
Kh5 {[%clk 0:00:45.2]} 49. Bc6 {[%clk 0:00:17.8]} 49... Nf5 {[%clk 0:00:42.1]}
50. Bb5 {[%clk 0:00:16.7]} 50... Nxh4+ {[%clk 0:00:42.8]} 51. Kf2 {[%clk
0:00:17.8]} 51... Nf5 {[%clk 0:00:38.1]} 52. Rc4 {[%clk 0:00:15.9]} 52... g5
{[%clk 0:00:37.4]} 53. Rc5 {[%clk 0:00:16.9]} 53... Nd6 {[%clk 0:00:37.2]} 54.
Be2+ {[%clk 0:00:16.9]} 54... Kh4 {[%clk 0:00:36.6]} 55. Re5 {[%clk 0:00:15.7]}
55... g4 {[%clk 0:00:33.2]} 56. a5 {[%clk 0:00:15.5]} 56... Ra2 {[%clk
0:00:29.5]} 57. Kf1 {[%clk 0:00:15.1]} 57... Kg3 {[%clk 0:00:27.5]} 58. Rg5
{[%clk 0:00:15.5]} 58... Ra1+ {[%clk 0:00:28]} 59. Bd1 {[%clk 0:00:16.9]} 59...
Rxd1+ {[%clk 0:00:28.8]} 60. Ke2 {[%clk 0:00:18.5]} 60... Ra1 {[%clk 0:00:29.4]}
61. Rg6 {[%clk 0:00:19.2]} 61... Nf5 {[%clk 0:00:27.7]} 62. a6 {[%clk 0:00:20]}
62... Kf4 {[%clk 0:00:27.9]} 63. Rg7 {[%clk 0:00:19.1]} 63... g3 {[%clk
0:00:29.2]} 64. Rg8 {[%clk 0:00:19]} 64... Rxa6 {[%clk 0:00:30.1]} 0-1